fUSD/lending_fUSD_20250530
["ID","MTS","AMOUNT","RATE_DAILY","PERIOD"]
[363130889,1748595038290,-420.0,0.00021917,2]
[363130890,1748595038300,-420.0,0.00021917,2]
[363130892,1748595038310,-1250.74,0.00021917,2]
[363130894,1748595038319,-420.0,0.00021917,2]
[363130895,1748595038328,-420.0,0.00021917,2]
[363130896,1748595038337,-420.0,0.00021917,2]
[363130897,1748595038350,-420.0,0.00021917,2]
[363130898,1748595038360,-420.0,0.00021917,2]
[363130900,1748595038370,-599.18,0.00021917,2]
[363130901,1748595038380,-506.03824378,0.00021917,2]
[363130902,1748595038390,-420.0,0.00021917,2]
[363130904,1748595038399,-609.29,0.00021917,2]
[363130905,1748595038409,-420.0,0.00021917,2]
[363130907,1748595038418,-505.55663535,0.00021917,2]
[363130908,1748595038427,-420.0,0.00021917,2]
[363130909,1748595038437,-1345.29,0.00021917,2]
[363130910,1748595038447,-420.0,0.00021917,2]
[363130911,1748595038457,-420.0,0.00021917,2]
[363130912,1748595038467,-420.0,0.00021917,2]
[363130913,1748595038476,-631.58,0.00021917,2]
[363130914,1748595038485,-1383.69,0.00021917,2]
[363130915,1748595038497,-420.0,0.00021917,2]
[363130916,1748595038507,-1110.64,0.00021917,2]
[363130917,1748595038516,-367.14887992,0.00021917,2]
[363130918,1748595038527,-420.0,0.00021917,2]
[363130919,1748595038537,-505.86401036,0.00021917,2]
[363130920,1748595038546,-1126.99,0.00021917,2]
[363130921,1748595038556,-420.0,0.00021917,2]
[363130922,1748595038567,-1763.39,0.00021917,2]
[363130923,1748595038577,-420.0,0.00021917,2]
[363130924,1748595038587,-1561.08,0.00021917,2]
[363130925,1748595038598,-420.0,0.00021917,2]
[363130926,1748595038607,-500.0,0.00021917,2]
[363130927,1748595038617,-547.94,0.00021917,2]
[363130928,1748595038627,-420.0,0.00021917,2]
[363130929,1748595038636,-1089.82,0.00021917,2]
[363130930,1748595038645,-685.02,0.00021917,2]
[363130931,1748595038656,-500.0,0.00021917,2]
[363130932,1748595038665,-490.59,0.00021917,2]
[363130933,1748595038675,-420.0,0.00021917,2]
[363130934,1748595038684,-420.0,0.00021917,2]
[363130935,1748595038694,-420.0,0.00021917,2]
[363130936,1748595038703,-420.0,0.00021917,2]
[363130937,1748595038713,-420.0,0.00021917,2]
[363130938,1748595038723,-423.7,0.00021917,2]
[363130939,1748595038732,-1214.08,0.00021917,2]
[363130940,1748595038742,-364.32266137,0.00021917,2]
[363130941,1748595038751,-420.0,0.00021917,2]
[363130942,1748595038762,-420.0,0.00021917,2]
[363130943,1748595038771,-420.0,0.00021917,2]
[363130944,1748595038781,-971.42,0.00021917,2]
[363130945,1748595038791,-420.0,0.00021917,2]
[363130946,1748595038800,-1052.34,0.00021917,2]
[363130947,1748595038810,-503.13804434,0.00021917,2]
[363130948,1748595038819,-460.21654168,0.00021917,2]
[363130949,1748595038829,-420.0,0.00021917,2]
[363130950,1748595038839,-429.02365213,0.00021917,2]
[363130951,1748595038851,-500.0,0.00021917,2]
[363130952,1748595038861,-420.0,0.00021917,2]
[363130953,1748595038870,-587.16,0.00021917,2]
[363130954,1748595038880,-420.0,0.00021917,2]
[363130955,1748595038889,-1174.65,0.00021917,2]
[363130956,1748595038898,-795.89,0.00021917,2]
[363130957,1748595038908,-420.0,0.00021917,2]
[363130958,1748595038918,-500.0,0.00021917,2]
[363130959,1748595038927,-420.0,0.00021917,2]
[363130960,1748595038937,-420.0,0.00021917,2]
[363130961,1748595038946,-455.81,0.00021917,2]
[363130962,1748595038956,-423.50120856,0.00021917,2]
[363130963,1748595038966,-420.0,0.00021917,2]
[363130964,1748595038975,-420.0,0.00021917,2]
[363130965,1748595038985,-420.0,0.00021917,2]
[363130966,1748595038994,-1281.51,0.00021917,2]
[363130967,1748595039003,-456.85,0.00021917,2]
[363130968,1748595039013,-644.85,0.00021917,2]
[363130969,1748595039023,-420.0,0.00021917,2]
[363130970,1748595039032,-420.0,0.00021917,2]
[363130971,1748595039042,-482.2,0.00021917,2]
[363130972,1748595039051,-805.75,0.00021917,2]
[363130973,1748595039061,-702.42,0.00021917,2]
[363130974,1748595039070,-420.0,0.00021917,2]
[363130975,1748595039079,-420.0,0.00021917,2]
[363130976,1748595039089,-420.0,0.00021917,2]
[363130977,1748595039100,-423.00893426,0.00021917,2]
[363130978,1748595039109,-429.86,0.00021917,2]
[363130979,1748595039118,-420.0,0.00021917,2]
[363130980,1748595039128,-420.0,0.00021917,2]
[363130981,1748595039137,-185.44131668,0.00021917,2]
[363130982,1748595039147,-420.0,0.00021917,2]
[363130983,1748595039156,-420.0,0.00021917,2]
[363130984,1748595039164,-426.3387184,0.00021917,2]
[363130985,1748595039174,-478.59,0.00021917,2]
[363130986,1748595039183,-420.0,0.00021917,2]
[363130987,1748595039193,-420.0,0.00021917,2]
[363130988,1748595039202,-1051.67,0.00021917,2]
[363130989,1748595039212,-420.0,0.00021917,2]
[363130990,1748595039221,-430.24124531,0.00021917,2]
[363130991,1748595039231,-420.0,0.00021917,2]
[363130992,1748595039240,-426.8308084,0.00021917,2]
[363130993,1748595039250,-363.95979493,0.00021917,2]
[363130994,1748595039260,-5683.26,0.00021917,2]
[363130995,1748595039269,-1121.2,0.00021917,2]
[363130996,1748595039279,-420.0,0.00021917,2]
[363130997,1748595039288,-420.0,0.00021917,2]
[363130998,1748595039298,-420.0,0.00021917,2]
[363130999,1748595039308,-420.0,0.00021917,2]
[363131000,1748595039317,-585.13,0.00021917,2]
[363131001,1748595039327,-502.84881267,0.00021917,2]
[363131002,1748595039336,-1097.86,0.00021917,2]
[363131003,1748595039348,-420.0,0.00021917,2]
[363131004,1748595039357,-475.78,0.00021917,2]
[363131005,1748595039367,-420.0,0.00021917,2]
[363131006,1748595039376,-530.45803274,0.00021917,2]
[363131007,1748595039386,-500.0,0.00021917,2]
[363131008,1748595039395,-420.0,0.00021917,2]
[363131009,1748595039405,-186.46508155,0.00021917,2]
[363131010,1748595039416,-420.0,0.00021917,2]
[363131011,1748595039425,-500.0,0.00021917,2]
[363131012,1748595039434,-420.0,0.00021917,2]
[363131013,1748595039444,-420.0,0.00021917,2]
[363131014,1748595039453,-580.44,0.00021917,2]
[363131015,1748595039463,-420.0,0.00021917,2]
[363131016,1748595039472,-449.63,0.00021917,2]
[363131017,1748595039481,-420.0,0.00021917,2]
[363131018,1748595039492,-500.0,0.00021917,2]
[363131019,1748595039505,-756.97,0.00021917,2]
[363131020,1748595039515,-420.00605235,0.00021917,2]
[363131021,1748595039524,-864.57,0.00021917,2]
[363131022,1748595039535,-504.18362721,0.00021917,2]
[363131023,1748595039545,-416.97475516,0.00021917,2]
[363131024,1748595039556,-500.0,0.00021917,2]
[363131025,1748595039565,-501.55169409,0.00021917,2]
[363131026,1748595039576,-420.0,0.00021917,2]
[363131027,1748595039585,-420.0,0.00021917,2]
[363131028,1748595039598,-1135.05,0.00021917,2]
[363131029,1748595039608,-420.0,0.00021917,2]
[363131030,1748595039618,-420.0,0.00021917,2]
[363131031,1748595039627,-683.44,0.00021917,2]
[363131032,1748595039637,-686.42,0.00021917,2]
[363131033,1748595039646,-420.0,0.00021917,2]
[363131034,1748595039656,-424.81527192,0.00021917,2]
[363131035,1748595039666,-965.67,0.00021917,2]
[363131036,1748595039676,-698.2,0.00021917,2]
[363131037,1748595039686,-1059.69,0.00021917,2]
[363131038,1748595039695,-1006.51553197,0.00021917,2]
[363131039,1748595039705,-9664.27,0.00021917,2]
[363131040,1748595039715,-807.29,0.00021917,2]
[363131041,1748595039725,-420.0,0.00021917,2]
[363131042,1748595039734,-1491.26,0.00021917,2]
[363131043,1748595039744,-579.11,0.00021917,2]
[363131044,1748595039754,-856.34,0.00021917,2]
[363131045,1748595039763,-420.0,0.00021917,2]
[363131046,1748595039774,-2183.84,0.00021917,2]
[363131047,1748595039793,-420.0,0.00021917,2]
[363131048,1748595039803,-420.0,0.00021917,2]
[363131049,1748595039813,-420.0,0.00021917,2]
[363131050,1748595039823,-420.0,0.00021917,2]
[363131051,1748595039833,-1246.82,0.00021917,2]
[363131052,1748595039842,-420.0,0.00021917,2]
[363131053,1748595039854,-5299.22,0.00021917,2]
[363131054,1748595039863,-633.06,0.00021917,2]
[363131055,1748595039873,-1561.83,0.00021917,2]
[363131056,1748595039883,-12353.06,0.00021917,2]
[363131057,1748595039892,-362.72556154,0.00021917,2]
[363131058,1748595039902,-420.0,0.00021917,2]
[363131059,1748595039912,-420.0,0.00021917,2]
[363131060,1748595039922,-519.80055057,0.00021917,2]
[363131061,1748595039932,-423.97085056,0.00021917,2]
[363131062,1748595039941,-500.0,0.00021917,2]
[363131063,1748595039951,-423.54,0.00021917,2]
[363131064,1748595039961,-500.0,0.00021917,2]
[363131065,1748595039971,-1237.4,0.00021917,2]
[363131066,1748595039981,-420.0,0.00021917,2]
[363131067,1748595039990,-506.21,0.00021917,2]
[363131068,1748595040000,-703.36,0.00021917,2]
[363131069,1748595040010,-550.35,0.00021917,2]
[363131070,1748595040019,-1110.79,0.00021917,2]
[363131071,1748595040030,-454.68,0.00021917,2]
[363131072,1748595040039,-1231.42,0.00021917,2]
[363131073,1748595040049,-622.09,0.00021917,2]
[363131074,1748595040058,-1183.57,0.00021917,2]
[363131075,1748595040068,-5557.31,0.00021917,2]
[363131076,1748595040078,-424.57219225,0.00021917,2]
[363131077,1748595040088,-420.0,0.00021917,2]
[363131078,1748595040100,-420.0,0.00021917,2]
[363131079,1748595040109,-420.0,0.00021917,2]
[363131080,1748595040119,-715.8,0.00021917,2]
[363131081,1748595040130,-420.0,0.00021917,2]
[363131082,1748595040139,-571.86,0.00021917,2]
[363131083,1748595040150,-1742.19,0.00021917,2]
[363131084,1748595040160,-420.0,0.00021917,2]
[363131085,1748595040170,-539.5,0.00021917,2]
[363131086,1748595040367,-420.0,0.00021917,2]
[363131087,1748595040407,-420.0,0.00021917,2]
[363131088,1748595040417,-420.0,0.00021917,2]
[363131089,1748595040427,-403.29972029,0.00021917,2]
[363131090,1748595040437,-420.0,0.00021917,2]
[363131091,1748595040446,-423.19778476,0.00021917,2]
[363131092,1748595040456,-420.0,0.00021917,2]
[363131093,1748595040465,-420.0,0.00021917,2]
[363131094,1748595040475,-1019.74,0.00021917,2]
[363131095,1748595040485,-10310.4,0.00021917,2]
[363131096,1748595040497,-420.0,0.00021917,2]
[363131097,1748595040507,-420.0,0.00021917,2]
[363131098,1748595040517,-500.0,0.00021917,2]
[363131099,1748595040526,-384.4964958,0.00021917,2]
[363131100,1748595040537,-151.22567738,0.00021917,2]
[363131101,1748595040546,-420.0,0.00021917,2]
[363131102,1748595040556,-420.0,0.00021917,2]
[363131103,1748595040566,-817.71,0.00021917,2]
[363131104,1748595040576,-1883.22,0.00021917,2]
[363131105,1748595040585,-420.0,0.00021917,2]
[363131106,1748595040595,-420.0,0.00021917,2]
[363131107,1748595040605,-619.48,0.00021917,2]
[363131109,1748595040615,-420.0,0.00021917,2]
[363131110,1748595040624,-420.0,0.00021917,2]
[363131111,1748595040634,-422.37615518,0.00021917,2]
[363131112,1748595040643,-1094.06,0.00021917,2]
[363131113,1748595040652,-500.0,0.00021917,2]
[363131114,1748595040662,-425.69755832,0.00021917,2]
[363131115,1748595040672,-1423.0,0.00021917,2]
[363131116,1748595040682,-712.17,0.00021917,2]
[363131117,1748595040692,-420.0,0.00021917,2]
[363131118,1748595040702,-1236.41,0.00021917,2]
[363131119,1748595040713,-573.55,0.00021917,2]
[363131120,1748595040722,-549.66,0.00021917,2]
[363131121,1748595040732,-1568.86,0.00021917,2]
[363131122,1748595040742,-651.44,0.00021917,2]
[363131123,1748595040751,-420.0,0.00021917,2]
[363131124,1748595040761,-500.0,0.00021917,2]
[363131125,1748595040770,-946.02,0.00021917,2]
[363131126,1748595040780,-424.29767535,0.00021917,2]
[363131127,1748595040794,-500.0,0.00021917,2]
[363131128,1748595040803,-420.0,0.00021917,2]
[363131129,1748595040813,-92872.14920567,0.00021917,2]
[363131130,1748595040854,-3164.46868574,0.00021917,2]
[363131131,1748595040866,-542.468985,0.00021917,2]
[363131132,1748595040878,-49594.77312359,0.00021917,2]
[363131133,1748595040888,-3632.37,0.00021917,2]
[363131134,1748595040897,-0.5813751,0.00021917,2]
[363131135,1748595040909,-419.4186249,0.00021917,2]
[363131136,1748595040922,-500.0,0.00021917,2]
[363131137,1748595040931,-416.16421525,0.00021917,2]
[363131138,1748595040943,-83.83578475,0.00021917,2]
[363131139,1748595040952,-613.00436985,0.00021917,2]
[363131140,1748595040965,-326.42563015,0.00021917,2]
[363131141,1748595040975,-500.0,0.00021917,2]
[363131142,1748595040984,-500.0,0.00021917,2]
[363131143,1748595040994,-500.0,0.00021917,2]
[363131144,1748595041003,-2425.51,0.00021917,2]
[363131145,1748595041014,-420.0,0.00021917,2]
[363131146,1748595041023,-5950.22498803,0.00021917,2]
[363131147,1748595041035,-4866.05705625,0.00021917,2]
[363131149,1748595043179,-1101.19795572,0.00021917,2]
[363131150,1748595043189,-420.0,0.00021917,2]
[363131151,1748595043199,-884.49,0.00021917,2]
[363131152,1748595043208,-290.3,0.00021917,2]
[363131153,1748595043218,-978.34,0.00021917,2]
[363131154,1748595043227,-420.0,0.00021917,2]
[363131155,1748595043236,-867.02,0.00021917,2]
[363131156,1748595043247,-422.50052636,0.00021917,2]
[363131157,1748595043257,-1653.59,0.00021917,2]
[363131158,1748595043265,-420.0,0.00021917,2]
[363131159,1748595043275,-426.11729855,0.00021917,2]
[363131160,1748595043285,-420.0,0.00021917,2]
[363131161,1748595043294,-420.0,0.00021917,2]
[363131162,1748595043303,-753.89,0.00021917,2]
[363131163,1748595043313,-500.0,0.00021917,2]
[363131164,1748595043322,-387.73417533,0.00021917,2]
[363131165,1748595043331,-420.0,0.00021917,2]
[363131166,1748595043341,-420.0,0.00021917,2]
[363131167,1748595043351,-421.67,0.00021917,2]
[363131168,1748595043360,-420.0,0.00021917,2]
[363131169,1748595043370,-591.07,0.00021917,2]
[363131170,1748595043379,-493.51,0.00021917,2]
[363131171,1748595043389,-153.32218622,0.00021917,2]
[363131172,1748595043399,-420.0,0.00021917,2]
[363131173,1748595043409,-2970.33,0.00021917,2]
[363131174,1748595043419,-2074.1,0.00021917,2]
[363131175,1748595043428,-500.0,0.00021917,2]
[363131176,1748595043438,-420.0,0.00021917,2]
[363131177,1748595043447,-420.0,0.00021917,2]
[363131178,1748595043456,-552.95,0.00021917,2]
[363131179,1748595043466,-1216.76,0.00021917,2]
[363131180,1748595043475,-420.0,0.00021917,2]
[363131181,1748595043485,-420.0,0.00021917,2]
[363131182,1748595043496,-420.0,0.00021917,2]
[363131183,1748595043506,-420.0,0.00021917,2]
[363131184,1748595043516,-420.0,0.00021917,2]
[363131185,1748595043526,-420.0,0.00021917,2]
[363131186,1748595043536,-1418.23,0.00021917,2]
[363131187,1748595043545,-2872.57,0.00021917,2]
[363131188,1748595043555,-420.0,0.00021917,2]
[363131189,1748595043564,-581.16,0.00021917,2]
[363131190,1748595043574,-163.70265355,0.00021917,2]
[363131191,1748595043584,-605.35,0.00021917,2]
[363131192,1748595043594,-1195.25,0.00021917,2]
[363131193,1748595043607,-3431.27,0.00021917,2]
[363131194,1748595043617,-420.0,0.00021917,2]
[363131195,1748595043626,-875.67,0.00021917,2]
[363131196,1748595043636,-420.0,0.00021917,2]
[363131197,1748595043646,-420.0,0.00021917,2]
[363131198,1748595043655,-420.0,0.00021917,2]
[363131199,1748595043667,-420.0,0.00021917,2]
[363131200,1748595043687,-1028.59,0.00021917,2]
[363131201,1748595043697,-420.0,0.00021917,2]
[363131202,1748595043706,-1013.39,0.00021917,2]
[363131203,1748595043716,-35448.93,0.00021917,2]
[363131204,1748595043725,-420.0,0.00021917,2]
[363131205,1748595043737,-832.47,0.00021917,2]
[363131206,1748595043749,-695.63,0.00021917,2]
[363131207,1748595043762,-438.34,0.00021917,2]
[363131208,1748595043772,-420.0,0.00021917,2]
[363131209,1748595043786,-420.0,0.00021917,2]
[363131210,1748595043798,-864.09,0.00021917,2]
[363131211,1748595043808,-1460.45,0.00021917,2]
[363131212,1748595043818,-4777.0,0.00021917,2]
[363131213,1748595043827,-1016.81,0.00021917,2]
[363131214,1748595043837,-420.0,0.00021917,2]
[363131215,1748595043847,-6943.61,0.00021917,2]
[363131216,1748595043856,-5912.69,0.00021917,2]
[363131217,1748595043865,-3410.15,0.00021917,2]
[363131218,1748595043875,-420.0,0.00021917,2]
[363131219,1748595043884,-604.59,0.00021917,2]
[363131220,1748595043895,-500.0,0.00021917,2]
[363131221,1748595043904,-420.0,0.00021917,2]
[363131222,1748595043914,-500.0,0.00021917,2]
[363131223,1748595043924,-712.14,0.00021917,2]
[363131224,1748595043933,-420.0,0.00021917,2]
[363131225,1748595043943,-420.0,0.00021917,2]
[363131226,1748595043953,-1085.91,0.00021917,2]
[363131227,1748595043962,-421.76156006,0.00021917,2]
[363131228,1748595043972,-1312.81,0.00021917,2]
[363131229,1748595043981,-500.0,0.00021917,2]
[363131230,1748595043991,-427.44,0.00021917,2]
[363131231,1748595044001,-763.73,0.00021917,2]
[363131232,1748595044011,-423.35334085,0.00021917,2]
[363131233,1748595044020,-420.0,0.00021917,2]
[363131234,1748595044030,-500.0,0.00021917,2]
[363131235,1748595044039,-420.0,0.00021917,2]
[363131236,1748595044048,-1558.76,0.00021917,2]
[363131237,1748595044057,-420.0,0.00021917,2]
[363131238,1748595044067,-8866.72,0.00021917,2]
[363131239,1748595044076,-420.0,0.00021917,2]
[363131240,1748595044086,-420.0,0.00021917,2]
[363131241,1748595044095,-500.0,0.00021917,2]
[363131242,1748595044105,-1012.44,0.00021917,2]
[363131243,1748595044114,-420.0,0.00021917,2]
[363131244,1748595044124,-420.0,0.00021917,2]
[363131245,1748595044134,-300.0,0.00021917,2]
[363131246,1748595044143,-504.06406393,0.00021917,2]
[363131247,1748595044152,-420.0,0.00021917,2]
[363131248,1748595044162,-420.0,0.00021917,2]
[363131249,1748595044171,-1724.6,0.00021917,2]
[363131250,1748595044180,-420.0,0.00021917,2]
[363131251,1748595044190,-488.47,0.00021917,2]
[363131252,1748595044199,-466.55157668,0.00021917,2]
[363131253,1748595044208,-1986.16,0.00021917,2]
[363131254,1748595044218,-420.0,0.00021917,2]
[363131255,1748595044227,-420.0,0.00021917,2]
[363131256,1748595044238,-420.0,0.00021917,2]
[363131257,1748595044247,-1716.48,0.00021917,2]
[363131258,1748595044256,-1634.86,0.00021917,2]
[363131259,1748595044266,-924.63,0.00021917,2]
[363131260,1748595044275,-420.0,0.00021917,2]
[363131261,1748595044285,-744.65,0.00021917,2]
[363131262,1748595044294,-1108.49,0.00021917,2]
[363131263,1748595044304,-926.63,0.00021917,2]
[363131264,1748595044314,-500.0,0.00021917,2]
[363131265,1748595044324,-7359.95,0.00021917,2]
[363131266,1748595044333,-500.0,0.00021917,2]
[363131267,1748595044344,-420.0,0.00021917,2]
[363131268,1748595044354,-500.0,0.00021917,2]
[363131269,1748595044364,-634.1,0.00021917,2]
[363131270,1748595044373,-420.0,0.00021917,2]
[363131272,1748595044383,-420.0,0.00021917,2]
[363131273,1748595044392,-582.01,0.00021917,2]
[363131274,1748595044402,-894.5,0.00021917,2]
[363131275,1748595044411,-947.39,0.00021917,2]
[363131276,1748595044420,-420.0,0.00021917,2]
[363131277,1748595044429,-714.91,0.00021917,2]
[363131278,1748595044438,-1391.71,0.00021917,2]
[363131280,1748595044448,-420.0,0.00021917,2]
[363131281,1748595044457,-10506.62,0.00021917,2]
[363131282,1748595044467,-689.07,0.00021917,2]
[363131283,1748595044476,-1447.76,0.00021917,2]
[363131284,1748595044485,-1830.22,0.00021917,2]
[363131285,1748595044495,-420.0,0.00021917,2]
[363131286,1748595044506,-420.0,0.00021917,2]
[363131287,1748595044515,-503.87081854,0.00021917,2]
[363131288,1748595044524,-420.0,0.00021917,2]
[363131289,1748595044534,-2064.25,0.00021917,2]
[363131292,1748595044545,-1390.96,0.00021917,2]
[363131295,1748595044554,-420.0,0.00021917,2]
[363131297,1748595044563,-504.7075415,0.00021917,2]
[363131299,1748595044575,-420.0,0.00021917,2]
[363131300,1748595044585,-1032.87,0.00021917,2]
[363131301,1748595044594,-420.0,0.00021917,2]
[363131302,1748595044605,-429.14,0.00021917,2]
[363131303,1748595044615,-4246.82,0.00021917,2]
[363131305,1748595044624,-500.0,0.00021917,2]
[363131306,1748595044634,-986.88,0.00021917,2]
[363131307,1748595044643,-1241.51,0.00021917,2]
[363131309,1748595044653,-420.0,0.00021917,2]
[363131310,1748595044663,-513.97,0.00021917,2]
[363131311,1748595044674,-500.0,0.00021917,2]
[363131312,1748595044683,-165.81959145,0.00021917,2]
[363131313,1748595044693,-900.66,0.00021917,2]
[363131314,1748595044703,-503.14248089,0.00021917,2]
[363131315,1748595044712,-1411.58,0.00021917,2]
[363131316,1748595044722,-420.0,0.00021917,2]
[363131317,1748595044732,-1703.92,0.00021917,2]
[363131318,1748595044742,-451.86,0.00021917,2]
[363131319,1748595044752,-420.0,0.00021917,2]
[363131320,1748595044762,-1492.1,0.00021917,2]
[363131321,1748595044771,-1782.43,0.00021917,2]
[363131322,1748595044781,-420.0,0.00021917,2]
[363131323,1748595044790,-891.35,0.00021917,2]
[363131324,1748595044799,-420.0,0.00021917,2]
[363131325,1748595044809,-459.25,0.00021917,2]
[363131326,1748595044818,-503.70599313,0.00021917,2]
[363131327,1748595044827,-713.78,0.00021917,2]
[363131328,1748595044837,-24042.6,0.00021917,2]
[363131329,1748595044846,-2492.49,0.00021917,2]
[363131330,1748595044857,-428.94,0.00021917,2]
[363131331,1748595044866,-420.0,0.00021917,2]
[363131332,1748595044875,-8089.18,0.00021917,2]
[363131333,1748595044884,-420.0,0.00021917,2]
[363131334,1748595044894,-584.91,0.00021917,2]
[363131335,1748595044903,-886.85,0.00021917,2]
[363131336,1748595044912,-420.0,0.00021917,2]
[363131337,1748595044922,-420.0,0.00021917,2]
[363131338,1748595044931,-426.58148416,0.00021917,2]
[363131339,1748595044941,-420.0,0.00021917,2]
[363131340,1748595044951,-420.0,0.00021917,2]
[363131341,1748595044961,-420.0,0.00021917,2]
[363131343,1748595044970,-422.06665195,0.00021917,2]
[363131345,1748595044979,-1539.82,0.00021917,2]
[363131347,1748595044988,-13408.83,0.00021917,2]
[363131349,1748595044998,-420.90185805,0.00021917,2]
[363131351,1748595045009,-420.0,0.00021917,2]
[363131353,1748595045018,-420.0,0.00021917,2]
[363131355,1748595045027,-500.0,0.00021917,2]
[363131357,1748595045036,-420.0,0.00021917,2]
[363131359,1748595045045,-420.0,0.00021917,2]
[363131361,1748595045054,-801.8,0.00021917,2]
[363131363,1748595045064,-420.0,0.00021917,2]
[363131366,1748595045074,-2540.05,0.00021917,2]
[363131367,1748595045083,-500.0,0.00021917,2]
[363131370,1748595045092,-1220.76,0.00021917,2]
[363131373,1748595045102,-420.0,0.00021917,2]
[363131376,1748595045111,-887.28,0.00021917,2]
[363131379,1748595045120,-745.23,0.00021917,2]
[363131382,1748595045130,-4419.24,0.00021917,2]
[363131385,1748595045139,-1076.39,0.00021917,2]
[363131388,1748595045147,-489.66,0.00021917,2]
[363131390,1748595045156,-511.89,0.00021917,2]
[363131392,1748595045165,-420.0,0.00021917,2]
[363131394,1748595045174,-538.09,0.00021917,2]
[363131397,1748595045183,-420.0,0.00021917,2]
[363131400,1748595045194,-420.0,0.00021917,2]
[363131403,1748595045203,-518.21428543,0.00021917,2]
[363131406,1748595045212,-420.0,0.00021917,2]
[363131409,1748595045221,-420.0,0.00021917,2]
[363131412,1748595045230,-420.0,0.00021917,2]
[363131414,1748595045239,-723.44,0.00021917,2]
[363131417,1748595045249,-420.0,0.00021917,2]
[363131421,1748595045259,-420.0,0.00021917,2]
[363131424,1748595045268,-420.0,0.00021917,2]
[363131426,1748595045277,-4088.87,0.00021917,2]
[363131429,1748595045287,-768.19,0.00021917,2]
[363131432,1748595045296,-420.0,0.00021917,2]
[363131435,1748595045305,-656.15,0.00021917,2]
[363131438,1748595045315,-420.0,0.00021917,2]
[363131440,1748595045327,-500.0,0.00021917,2]
[363131442,1748595045336,-420.0,0.00021917,2]
[363131444,1748595045347,-726.02,0.00021917,2]
[363131446,1748595045358,-420.0,0.00021917,2]
[363131448,1748595045367,-503.73152989,0.00021917,2]
[363131450,1748595045377,-1195.02,0.00021917,2]
[363131452,1748595045386,-448.92,0.00021917,2]
[363131454,1748595045396,-961.19,0.00021917,2]
[363131455,1748595045406,-420.0,0.00021917,2]
[363131456,1748595045416,-4464.4,0.00021917,2]
[363131457,1748595045425,-420.0,0.00021917,2]
[363131458,1748595045435,-420.0,0.00021917,2]
[363131459,1748595045444,-3020.32,0.00021917,2]
[363131460,1748595045453,-420.0,0.00021917,2]
[363131461,1748595045462,-420.0,0.00021917,2]
[363131462,1748595045472,-1470.13,0.00021917,2]
[363131463,1748595045481,-1010.18,0.00021917,2]
[363131464,1748595045490,-614.66,0.00021917,2]
[363131465,1748595045501,-793.16,0.00021917,2]
[363131466,1748595045511,-420.0,0.00021917,2]
[363131467,1748595045520,-420.0,0.00021917,2]
[363131468,1748595045529,-1052.93,0.00021917,2]
[363131469,1748595045540,-420.0,0.00021917,2]
[363131470,1748595045549,-420.0,0.00021917,2]
[363131471,1748595045559,-1877.11,0.00021917,2]
[363131472,1748595045568,-718.74,0.00021917,2]